bitfinex/quotes_BTCUSD_20241124
["timestamp","ask_amount","ask_price","bid_price","bid_amount"]
[1732411666594,0.15048029,97937.0,97936.0,0.04130119]
[1732411667470,0.22598029,97937.0,97936.0,0.04130119]
[1732411667676,0.22521427,97937.0,97936.0,0.04130119]
[1732411681270,0.28634054,97937.0,97936.0,0.04130119]
[1732411699046,0.16314054,97937.0,97936.0,0.04130119]
[1732411700301,0.06112627,97941.0,97936.0,0.04130119]
[1732411700505,0.10201427,97941.0,97936.0,0.04130119]
[1732411700719,0.06112627,97937.0,97936.0,0.04130119]
[1732411703935,0.05829521,97937.0,97936.0,0.04130119]
[1732411706164,0.10201427,97941.0,97936.0,0.04130119]
[1732411706377,0.05829521,97937.0,97936.0,0.04130119]
[1732411714377,0.05829521,97937.0,97936.0,0.49828749]
[1732411714814,0.18499521,97937.0,97936.0,0.49828749]
[1732411715034,0.18499521,97937.0,97936.0,0.49828194]
[1732411720008,0.18499521,97937.0,97936.0,0.19130119]
[1732411720009,0.28700948,97937.0,97936.0,0.19130119]
[1732411720218,0.28700948,97937.0,97936.0,0.04130119]
[1732411724154,0.28872788,97937.0,97936.0,0.04130119]
[1732411726531,0.28668718,97937.0,97936.0,0.04130119]
[1732411731285,0.06001361,97937.0,97936.0,0.04130119]
[1732411734775,0.16202788,97937.0,97936.0,0.04130119]
[1732411734985,0.20992788,97937.0,97936.0,0.04130119]
[1732411735193,0.28592788,97937.0,97936.0,0.04130119]
[1732411746792,0.28592788,97937.0,97932.0,0.0007986]
[1732411747018,0.10278029,97936.0,97908.0,0.30713127]
[1732411747239,0.05829521,97932.0,97908.0,0.30713127]
[1732411747469,0.10001246,97931.0,97908.0,0.30713127]
[1732411748089,0.10001246,97931.0,97927.0,0.11957282]
[1732411748310,0.10001246,97931.0,97927.0,0.0409914]
[1732411748527,0.10001246,97931.0,97920.0,0.15716284]
[1732411748958,0.10001246,97931.0,97921.0,0.150859]
[1732411749166,0.10001246,97931.0,97927.0,0.0008592]
[1732411752183,0.05829521,97932.0,97927.0,0.0008592]
[1732411752878,0.0017184,97937.0,97927.0,0.0008592]
[1732411753100,0.05829521,97932.0,97928.0,0.15102105]
[1732411753307,0.0017182,97942.0,97930.0,0.15]
[1732411753516,0.0017182,97942.0,97933.0,0.15]
[1732411753736,0.0017182,97942.0,97934.0,0.00102102]
[1732411756800,0.0017182,97942.0,97941.0,0.15]
[1732411757761,0.0017182,97942.0,97941.0,0.45711036]
[1732411758402,0.0017182,97942.0,97941.0,0.15]
[1732411758659,0.0017182,97942.0,97941.0,0.45711036]
[1732411759216,0.0017182,97942.0,97941.0,0.15]
[1732411759781,0.0017182,97952.0,97941.0,0.15]
[1732411759999,0.0017182,97952.0,97942.0,0.07858142]
[1732411760272,0.0017182,97952.0,97942.0,0.35366284]
[1732411762384,0.0017182,97952.0,97942.0,0.6607732]
[1732411762616,0.0017182,97952.0,97944.0,0.15]
[1732411763058,0.0017182,97952.0,97944.0,0.52441036]
[1732411763523,0.0017182,97952.0,97944.0,0.2173]
[1732411764012,0.0017182,97952.0,97944.0,0.52441036]
[1732411764249,0.06001341,97961.0,97951.0,0.15716284]
[1732411764467,0.06001341,97961.0,97952.0,0.15]
[1732411767286,0.06001341,97961.0,97952.0,0.19200822]
[1732411772083,0.10201427,97960.0,97952.0,0.19200822]
[1732411772290,0.00076602,97960.0,97952.0,0.19200822]
[1732411772498,0.0017182,97961.0,97954.0,0.15]
[1732411772937,0.0017182,97961.0,97955.0,0.01473086]
[1732411774375,0.0017182,97961.0,97956.0,0.15]
[1732411774594,0.0017182,97961.0,97957.0,0.00721666]
[1732411778726,0.0017182,97961.0,97958.0,0.00102076]
[1732411778927,0.0017182,97961.0,97959.0,0.00553122]
[1732411780649,0.0017182,97961.0,97959.0,0.0045105]
[1732411782536,0.0802,97976.0,97959.0,0.0045105]
[1732411782537,0.016964,97976.0,97974.0,0.002]
[1732411782748,0.05829521,97999.0,97975.0,0.00102055]
[1732411783000,0.10278029,97998.0,97993.0,0.15]
[1732411784071,0.10278029,97998.0,97992.0,0.07858142]
[1732411784738,0.10278029,97998.0,97992.0,0.08753082]
[1732411788357,0.10278029,97998.0,97993.0,0.15]
[1732411789965,0.10278029,97998.0,97992.0,0.05061658]
[1732411792472,0.0753,98001.0,97992.0,0.04166718]
[1732411792668,0.10201427,98001.0,97993.0,0.00340902]
[1732411797773,0.05829521,97999.0,97993.0,0.00340902]
[1732411798010,0.00076602,97998.0,97993.0,0.00340902]
[1732411799284,0.10373187,98001.0,97993.0,0.00340902]
[1732411800297,0.05829521,97999.0,97993.0,0.00340902]
[1732411800507,0.00076602,97998.0,97993.0,0.00340902]
[1732411800712,0.05829521,97999.0,97993.0,0.00340902]
[1732411802139,0.10373187,98001.0,97993.0,0.00340902]
[1732411802755,0.0017176,98001.0,97993.0,0.00340902]
[1732411807286,0.0017176,98001.0,97990.0,0.00102045]
[1732411807503,0.0017176,98001.0,97991.0,0.00121594]
[1732411807714,0.0017176,98001.0,97992.0,0.15]
[1732411808930,0.0017176,98001.0,97991.0,0.00121594]
[1732411809155,0.0017176,98001.0,97991.0,0.15939917]
[1732411809582,0.0017176,98001.0,97992.0,0.15]
[1732411812435,0.0017176,98001.0,97992.0,0.1568399]
[1732411812910,0.0017176,98001.0,97993.0,0.0068399]
[1732411814927,0.0017176,98001.0,97991.0,0.15716284]
[1732411814928,0.1273,97999.0,97991.0,0.15716284]
[1732411815129,0.00076602,97998.0,97992.0,0.15]
[1732411815555,0.10201427,97997.0,97992.0,0.15]
[1732411815750,0.00076602,97996.0,97992.0,0.15]
[1732411815951,0.048,97995.0,97992.0,0.15]
[1732411816337,0.00076602,97994.0,97992.0,0.15]
[1732411817077,0.00076602,97994.0,97991.0,0.15716284]
[1732411817078,0.00076602,97994.0,97990.0,0.15]
[1732411817519,0.00076602,97994.0,97989.0,0.04212597]
[1732411817742,0.00076602,97994.0,97985.0,0.15]
[1732411818441,0.00076602,97994.0,97987.0,0.15]
[1732411819338,0.00076602,97994.0,97987.0,0.45518839]
[1732411820077,0.00076602,97994.0,97988.0,0.00731862]
[1732411820296,0.00076602,97994.0,97989.0,0.15]
[1732411820524,0.00076602,97994.0,97990.0,0.00731862]
[1732411821441,0.048,97995.0,97990.0,0.00731862]
[1732411821649,0.0017176,97994.0,97990.0,0.00731862]
[1732411822080,0.00248362,97994.0,97990.0,0.00731862]
[1732411822296,0.00248362,97994.0,97991.0,0.15]
[1732411824374,0.00248362,97994.0,97990.0,0.00731862]
[1732411825088,0.00248362,97994.0,97993.0,0.45576261]
[1732411825304,0.0017176,97994.0,97993.0,0.15]
[1732411826328,0.0017176,97994.0,97990.0,0.00731862]
[1732411826528,0.00248362,97994.0,97990.0,0.00731862]
[1732411828004,0.0017176,97994.0,97990.0,0.00731862]
[1732411828694,0.0017186,98031.0,97994.0,0.15]
[1732411828695,0.0789,98009.0,97994.0,0.15]
[1732411828901,0.05829521,98020.0,98003.0,0.15]
[1732411829158,0.05829521,98020.0,98005.0,0.15]
[1732411829368,0.0797597,98021.0,98006.0,0.30714914]
[1732411829597,0.0797597,98021.0,98007.0,0.45612894]
[1732411829851,0.05829521,98020.0,98008.0,0.00102019]
[1732411830080,0.05829521,98019.0,98007.0,0.45612894]
[1732411830288,0.05829521,98019.0,98007.0,0.15]
[1732411830731,0.05829521,98019.0,98006.0,0.15]
[1732411831407,0.05829521,98019.0,98005.0,0.1913141]
[1732411832485,0.05829521,98019.0,98005.0,0.0413141]
[1732411832926,0.05829521,98019.0,98004.0,0.45612894]
[1732411833321,0.05829521,98019.0,98004.0,0.15]
[1732411833689,0.05829521,98019.0,98003.0,0.50366485]
[1732411833891,0.05829521,98019.0,98002.0,0.07858142]
[1732411834097,0.05829521,98019.0,98002.0,0.12036044]
[1732411834364,0.05829521,98019.0,98003.0,0.00023136]
[1732411835561,0.0797597,98021.0,98003.0,0.00023136]
[1732411835740,0.0008597,98021.0,98011.0,0.07858142]
[1732411835957,0.05829521,98027.0,98011.0,0.07858142]
[1732411835958,0.03888236,98027.0,98012.0,0.22932015]
[1732411836252,0.03888236,98027.0,98018.0,0.15]
[1732411836431,0.0008597,98030.0,98018.0,0.15]
[1732411836671,0.0008597,98030.0,98019.0,0.00023136]
[1732411837232,0.0008597,98030.0,98019.0,0.00125148]
[1732411838065,0.0008597,98030.0,98020.0,0.07858142]
[1732411838276,0.0008597,98030.0,98020.0,0.0796015]
[1732411838502,0.0008597,98030.0,98021.0,0.00023136]
[1732411838780,0.0008597,98030.0,98021.0,0.10224563]
[1732411838976,0.0811,98045.0,98022.0,0.16527424]
[1732411839190,0.0811,98045.0,98035.0,0.23574426]
[1732411839440,0.0811,98045.0,98036.0,0.15]
[1732411839666,0.0811,98045.0,98036.0,0.17711409]
[1732411839872,0.03888236,98048.0,98036.0,0.17711409]
[1732411840097,0.0017184,98050.0,98036.0,0.17711409]
[1732411840338,0.0017184,98050.0,98043.0,0.002]
[1732411840546,0.0017184,98050.0,98040.0,0.23676414]
[1732411840746,0.0017184,98050.0,98044.0,0.02609416]
[1732411840963,0.0017184,98050.0,98045.0,0.0010198]
[1732411841180,0.0017184,98050.0,98040.0,0.12138311]
[1732411841181,0.0017184,98050.0,98040.0,0.23991975]
[1732411841396,0.0017184,98050.0,98046.0,0.02609416]
[1732411841618,0.0017184,98050.0,98047.0,0.00076359]
[1732411841849,0.0017184,98050.0,98048.0,0.00076359]
[1732411842797,0.0017184,98050.0,98049.0,0.00076359]
[1732411843031,0.0017184,98050.0,98047.0,0.00076359]
[1732411847825,0.0017184,98059.0,98047.0,0.00076359]
[1732411848044,0.0017184,98059.0,98049.0,0.11938311]
[1732411848506,0.0017184,98059.0,98050.0,0.15]
[1732411848731,0.0017184,98059.0,98050.0,0.15076359]
[1732411850082,0.0017184,98059.0,98050.0,0.15]
[1732411850541,0.0017184,98059.0,98051.0,0.00076359]
[1732411851231,0.0825,98065.0,98050.0,0.15]
[1732411851479,0.0825,98065.0,98051.0,0.00076359]
[1732411851719,0.0481,98072.0,98051.0,0.00076359]
[1732411851720,0.03888236,98068.0,98051.0,0.07806359]
[1732411851859,0.0481,98072.0,98062.0,0.23876622]
[1732411852072,0.08,98070.0,98063.0,0.15]
[1732411852286,0.03888236,98068.0,98063.0,0.15]
[1732411852871,0.08,98070.0,98063.0,0.15]
[1732411853067,0.03888236,98068.0,98063.0,0.15]
[1732411853278,0.08,98070.0,98063.0,0.15]
[1732411853718,0.03888236,98068.0,98063.0,0.15]
[1732411854161,0.03888236,98068.0,98059.0,0.15]
[1732411854570,0.03888236,98069.0,98059.0,0.15]
[1732411854801,0.11888236,98070.0,98059.0,0.15]
[1732411855045,0.03888236,98068.0,98059.0,0.15]
[1732411855243,0.0017176,98092.0,98060.0,0.00076337]
[1732411855481,0.0017176,98092.0,98071.0,0.15]
[1732411855482,0.0452,98082.0,98071.0,0.15]
[1732411855724,0.08,98081.0,98071.0,0.15]
[1732411858582,0.03888236,98073.0,98071.0,0.15]
[1732411858801,0.08,98081.0,98058.0,0.0467]
[1732411858802,0.11888236,98081.0,98064.0,0.15]
[1732411859014,0.03888236,98078.0,98072.0,0.15]
[1732411859248,0.03888236,98076.0,98072.0,0.15]
[1732411859458,0.03888236,98074.0,98071.0,0.08713384]
[1732411859679,0.08,98081.0,98070.0,0.11938311]
[1732411859896,0.03888236,98077.0,98070.0,0.11938311]
[1732411860129,0.11888236,98081.0,98070.0,0.11938311]
[1732411860344,0.08,98081.0,98070.0,0.11938311]
[1732411860779,0.08,98081.0,98065.0,0.00076316]
[1732411860780,0.03888236,98078.0,98065.0,0.00076316]
[1732411860989,0.03888236,98078.0,98071.0,0.11938311]
[1732411861216,0.08,98081.0,98071.0,0.11938311]
[1732411861455,0.03888236,98078.0,98071.0,0.11938311]
[1732411861878,0.03888236,98076.0,98071.0,0.11938311]
[1732411862097,0.08,98081.0,98071.0,0.11938311]
[1732411862776,0.08,98081.0,98071.0,0.30665978]
[1732411863001,0.03888236,98078.0,98072.0,0.15]
[1732411863213,0.08,98081.0,98072.0,0.15]
[1732411865047,0.03888236,98079.0,98072.0,0.15]
[1732411865296,0.08,98081.0,98072.0,0.15]
[1732411865522,0.03888236,98079.0,98072.0,0.15]
[1732411865736,0.08,98081.0,98072.0,0.19190324]
[1732411866823,0.03888236,98078.0,98072.0,0.19190324]
[1732411867306,0.08,98081.0,98072.0,0.19190324]
[1732411867718,0.03888236,98078.0,98072.0,0.19190324]
[1732411868173,0.0808591,98081.0,98072.0,0.19190324]
[1732411869323,0.03888236,98073.0,98072.0,0.19190324]
[1732411869734,0.03888236,98076.0,98072.0,0.04190324]
[1732411869944,0.03888236,98076.0,98067.0,0.15]
[1732411870162,0.0808591,98081.0,98068.0,0.00076317]
[1732411871142,0.0808591,98081.0,98071.0,0.15665978]
[1732411871354,0.0008591,98081.0,98072.0,0.15]
[1732411873874,0.0008591,98081.0,98072.0,0.1952]
[1732411875258,0.0008591,98081.0,98072.0,0.15]
[1732411876340,0.0008591,98081.0,98072.0,0.19090975]
[1732411882001,0.00121155,98087.0,98072.0,0.19090975]
[1732411882217,0.10201427,98086.0,98077.0,0.15665978]
[1732411882498,0.10201427,98086.0,98078.0,0.15]
[1732411891495,0.10287317,98086.0,98078.0,0.15]
[1732411893368,0.0486,98085.0,98078.0,0.15]
[1732411893589,0.10287317,98086.0,98072.0,0.04090975]
[1732411893590,0.03888236,98073.0,98072.0,0.04090975]
[1732411893963,0.03888236,98072.0,98071.0,0.0017178]
[1732411894141,0.22497374,98072.0,98071.0,0.0017178]
[1732411894345,0.22399663,98072.0,98071.0,0.0017178]
[1732411894770,0.22399663,98072.0,98071.0,0.04331206]
[1732411894979,0.22195941,98072.0,98071.0,0.0017178]
[1732411896318,0.03888236,98078.0,98071.0,0.0017178]
[1732411896533,0.03888236,98079.0,98071.0,0.0017178]
[1732411896762,0.03888236,98079.0,98071.0,0.00273736]
[1732411897224,0.03888236,98079.0,98073.0,0.15]
[1732411897464,0.00127445,98085.0,98075.0,0.30569226]
[1732411897721,0.00127445,98085.0,98077.0,0.45569226]
[1732411897899,0.00127445,98085.0,98083.0,0.15]
[1732411898582,0.0008589,98086.0,98083.0,0.45569226]
[1732411899268,0.0008589,98086.0,98083.0,0.45560326]
[1732411899776,0.0008589,98086.0,98084.0,0.30569226]
[1732411901690,0.0008589,98086.0,98085.0,0.15]
[1732411903624,0.0008589,98086.0,98084.0,0.15]
[1732411904954,0.0008589,98086.0,98085.0,0.30569226]
[1732411905162,0.0008589,98086.0,98085.0,0.15]
[1732411906102,0.0008589,98086.0,98083.0,0.04026571]
[1732411906533,0.0008589,98086.0,98078.0,0.00273705]
[1732411906742,0.0008589,98086.0,98079.0,0.00101945]
[1732411907400,0.0008589,98086.0,98085.0,0.45558908]
[1732411907612,0.0008589,98086.0,98085.0,0.15]
[1732411908663,0.0008589,98086.0,98085.0,0.02849888]
[1732411912632,0.0008588,98092.0,98086.0,0.2307]
[1732411912875,0.0008588,98092.0,98087.0,0.00101934]
[1732411913088,0.0008588,98092.0,98090.0,0.45558668]
[1732411913317,0.0008588,98092.0,98091.0,0.00101933]
[1732411917472,0.0008588,98092.0,98089.0,0.1494179]
[1732411917694,0.0008588,98092.0,98087.0,0.30552286]
[1732411918550,0.0008588,98092.0,98088.0,0.02849888]
[1732411921705,0.0008588,98092.0,98087.0,0.15]
[1732411921706,0.00041856,98088.0,98083.0,0.1517176]
[1732411927060,0.00041856,98091.0,98083.0,0.1517176]
[1732411927706,0.00041857,98092.0,98083.0,0.1517176]
[1732411928631,0.00041857,98092.0,98084.0,0.002]
[1732411929719,0.00041857,98092.0,98080.0,0.02853142]
[1732411929925,0.00041857,98092.0,98082.0,0.15659564]
[1732411931908,0.00041857,98092.0,98083.0,0.15]
[1732411932559,0.04781857,98092.0,98083.0,0.15]
[1732411933716,0.0789,98091.0,98082.0,0.07829782]
[1732411939441,0.0789,98091.0,98082.0,0.08001542]
[1732411939863,0.0789,98091.0,98087.0,0.15]
[1732411940511,0.0789,98091.0,98089.0,0.15]
[1732411941551,0.0789,98091.0,98089.0,0.45523112]
[1732411942435,0.0789,98091.0,98082.0,0.08001542]
[1732411945094,0.0789,98091.0,98083.0,0.15]
[1732411952172,0.0789,98091.0,98082.0,0.12127233]
[1732411952173,0.1032886,98090.0,98085.0,0.15]
[1732411952396,0.1032886,98090.0,98082.0,0.04297451]
[1732411952397,0.16538236,98083.0,98082.0,0.04297451]
[1732411952596,0.26739663,98083.0,98082.0,0.04297451]
[1732411953019,0.26539663,98083.0,98082.0,0.04297451]
[1732411953625,0.26739663,98083.0,98082.0,0.04297451]
[1732411957307,0.03888236,98067.0,98050.0,0.15]
[1732411957547,0.23528904,98066.0,98050.0,0.15]
[1732411958010,0.002,98064.0,98050.0,0.15]
[1732411958249,0.10328903,98063.0,98054.0,0.07829782]
[1732411962056,0.132,98062.0,98054.0,0.07829782]
[1732411962289,0.10328907,98061.0,98054.0,0.07829782]
[1732411962763,0.002,98060.0,98054.0,0.07829782]
[1732411963004,0.10328906,98059.0,98054.0,0.07829782]
[1732411963443,0.10328906,98059.0,98050.0,0.15]
[1732411966420,0.10328906,98059.0,98054.0,0.0017178]
[1732411968402,0.10201427,98059.0,98054.0,0.0017178]
[1732411976914,0.10201427,98059.0,98049.0,0.07829782]
[1732411978019,0.10201427,98059.0,98049.0,0.08001602]
[1732411978241,0.10287337,98059.0,98049.0,0.08001602]
[1732411988495,0.0008591,98059.0,98050.0,0.15]
[1732411994014,0.03888236,98066.0,98050.0,0.15]
[1732411994226,0.03888236,98066.0,98057.0,0.15]
[1732411997137,0.127,98065.0,98054.0,0.15]
[1732411997405,0.127,98065.0,98055.0,0.07829782]
[1732411997658,0.00213355,98091.0,98049.0,0.1517182]
[1732411997659,0.0468,98062.0,98052.0,0.15]
[1732411997869,0.0468,98059.0,98052.0,0.15]
[1732411998081,0.00127478,98058.0,98052.0,0.15]
[1732411998497,0.127,98057.0,98052.0,0.15]
[1732411998708,0.127,98057.0,98042.0,0.15]
[1732411998911,0.00327478,98056.0,98040.0,0.08001622]
[1732411999133,0.127,98054.0,98040.0,0.08001622]
[1732411999336,0.12827483,98054.0,98040.0,0.12121753]
[1732411999571,0.03888236,98049.0,98040.0,0.12121753]
[1732412000912,0.03888236,98049.0,98041.0,0.15]
[1732412003377,0.16588236,98041.0,98040.0,0.04291971]
[1732412003583,0.26789663,98041.0,98040.0,0.04291971]
[1732412003800,0.26989663,98041.0,98040.0,0.04291971]
[1732412004885,0.26789663,98041.0,98040.0,0.04291971]
[1732412006064,0.22901427,98041.0,98040.0,0.04291971]
[1732412006270,0.26789663,98041.0,98040.0,0.04291971]
[1732412006489,0.16588236,98041.0,98040.0,0.04291971]
[1732412007387,0.127,98041.0,98040.0,0.04291971]
[1732412007809,0.16588236,98041.0,98040.0,0.04291971]
[1732412010731,0.127,98041.0,98040.0,0.04291971]
[1732412011851,0.16588236,98041.0,98040.0,0.04291971]
[1732412014922,0.16674176,98041.0,98040.0,0.04291971]
[1732412025876,0.16317207,98041.0,98040.0,0.04291971]
[1732412030581,0.16317207,98041.0,98032.0,0.15]
[1732412030582,0.16317207,98041.0,98032.0,0.00951524]
[1732412031032,0.03888236,98038.0,98031.0,0.07829782]
[1732412031551,0.03888236,98038.0,98031.0,0.10356012]
[1732412032211,0.03888236,98038.0,98031.0,0.14416071]
[1732412032647,0.03888236,98038.0,98032.0,0.15]
[1732412038717,0.03888236,98038.0,98032.0,0.1508594]
[1732412044163,0.12428971,98041.0,98032.0,0.1508594]
[1732412048147,0.0797,98033.0,98032.0,0.0008594]
[1732412048379,0.23028938,98033.0,98032.0,0.0008594]
[1732412048600,0.22901427,98033.0,98032.0,0.0008594]
[1732412054011,0.22901427,98033.0,98011.0,0.15]
[1732412054012,0.002,98021.0,98011.0,0.15]
[1732412054243,0.002,98021.0,98010.0,0.07829782]
[1732412054244,0.13,98019.0,98010.0,0.07829782]
[1732412054497,0.00127531,98018.0,98010.0,0.07829782]
[1732412054736,0.00127531,98018.0,98011.0,0.15]
[1732412055396,0.00327531,98018.0,98011.0,0.15]
[1732412055652,0.00127531,98018.0,98011.0,0.15]
[1732412055872,0.00327531,98018.0,98011.0,0.15]
[1732412056533,0.10201427,98017.0,98010.0,0.04131228]
[1732412056768,0.002,98015.0,98010.0,0.04131228]
[1732412056985,0.10328968,98014.0,98000.0,0.07829782]
[1732412057897,0.10528968,98014.0,98000.0,0.07829782]
[1732412058170,0.002,98009.0,98005.0,0.04316725]
[1732412058396,0.002,98007.0,98000.0,0.07829782]
[1732412058627,0.002,98007.0,98000.0,0.11928527]
[1732412058855,0.002,98006.0,98000.0,0.11928527]
[1732412059091,0.00127547,98005.0,98000.0,0.11928527]
[1732412059303,0.00127547,98005.0,98000.0,0.04098745]
[1732412059797,0.10401427,98007.0,97995.0,0.07829782]
[1732412059798,0.00127547,98006.0,97995.0,0.07829782]
[1732412061609,0.00127547,98006.0,97995.0,0.11975852]
[1732412061828,0.00127547,98006.0,97996.0,0.15]
[1732412062819,0.00127547,98006.0,97996.0,0.151719]
[1732412064082,0.10201427,98005.0,97996.0,0.151719]
[1732412064276,0.00127553,98004.0,97996.0,0.151719]
[1732412064502,0.10201427,98003.0,97996.0,0.151719]
[1732412064710,0.00127553,98002.0,97996.0,0.151719]
[1732412065579,0.0468,98001.0,97996.0,0.151719]
[1732412068350,0.0758,98000.0,97996.0,0.151719]
[1732412068584,0.0758,98000.0,97996.0,0.001719]
[1732412069486,0.002,97997.0,97996.0,0.001719]
[1732412069705,0.22461427,97997.0,97996.0,0.001719]
[1732412070153,0.22661427,97997.0,97996.0,0.001719]
[1732412074278,0.62461427,97997.0,97996.0,0.001719]
[1732412074517,0.62661427,97997.0,97996.0,0.001719]
[1732412084224,0.71666055,97997.0,97996.0,0.001719]
[1732412085625,0.64961427,97997.0,97996.0,0.001719]
[1732412086524,0.002,97961.0,97948.0,0.04895094]
[1732412086738,0.002,97960.0,97951.0,0.07829782]
[1732412086962,0.0785,97965.0,97951.0,0.07829782]
[1732412086963,0.002,97952.0,97951.0,0.07829782]
[1732412087184,0.002,97948.0,97940.0,0.15659564]
[1732412088547,0.002,97948.0,97941.0,0.1517188]
[1732412089722,0.002,97948.0,97946.0,0.09043506]
[1732412090162,0.002,97948.0,97946.0,0.24043506]
[1732412091586,0.002,97948.0,97946.0,0.04113506]
[1732412092039,0.07529042,97959.0,97941.0,0.1517188]
[1732412092283,0.07529042,97959.0,97949.0,0.07829782]
[1732412093945,0.07529042,97959.0,97950.0,0.15]
[1732412098697,0.07529042,97959.0,97949.0,0.11928478]
[1732412098698,0.1258,97956.0,97949.0,0.04098696]
[1732412098912,0.1032906,97955.0,97943.0,0.00103121]
[1732412099139,0.1032906,97955.0,97943.0,0.04312043]
[1732412099544,0.0786,97952.0,97946.0,0.0008602]
[1732412099708,0.1504907,97951.0,97946.0,0.0008602]
[1732412100952,0.0786,97950.0,97946.0,0.0008602]
[1732412101139,0.10329065,97949.0,97946.0,0.0008602]
[1732412102994,0.10201427,97949.0,97946.0,0.0008602]
[1732412103229,0.00127627,97958.0,97946.0,0.0008602]
[1732412103460,0.0017204,97959.0,97948.0,0.07829782]
[1732412103461,0.10329046,97957.0,97948.0,0.07829782]
[1732412106736,0.0786,97955.0,97946.0,0.0008602]
[1732412106906,0.1032906,97954.0,97946.0,0.0008602]
[1732412110185,0.1032906,97954.0,97946.0,0.02356458]
[1732412110325,0.1032906,97954.0,97947.0,0.02270438]
[1732412110732,0.0017204,97959.0,97947.0,0.02270438]
[1732412110980,0.0017204,97959.0,97950.0,0.15]
[1732412111201,0.0017204,97959.0,97950.0,0.2803]
[1732412111202,0.0017204,97955.0,97950.0,0.2803]
[1732412111429,0.0017204,97955.0,97951.0,0.02270438]
[1732412112180,0.0017204,97955.0,97933.0,0.0008594]
[1732412112181,0.0017204,97955.0,97945.0,0.15]
[1732412113352,0.0017204,97955.0,97945.0,0.26973593]
[1732412113582,0.0017204,97955.0,97946.0,0.12501427]
[1732412113802,0.0017204,97955.0,97949.0,0.002]
[1732412114512,0.0017204,97955.0,97947.0,0.15]
[1732412114730,0.0017204,97955.0,97952.0,0.002]
[1732412114959,0.0017204,97955.0,97949.0,0.15]
[1732412115185,0.0017204,97955.0,97950.0,0.0751]
[1732412122138,0.0017204,97955.0,97951.0,0.15]
[1732412122372,0.0017204,97959.0,97951.0,0.15]
[1732412123342,0.0017204,97959.0,97950.0,0.2251]
[1732412123555,0.0017204,97955.0,97950.0,0.2251]
[1732412123779,0.0017204,97955.0,97950.0,0.0751]
[1732412127217,0.0017204,97955.0,97950.0,0.0387]
[1732412128947,0.0017204,97955.0,97949.0,0.45661691]
[1732412129381,0.0017204,97955.0,97949.0,0.15]
[1732412132405,0.0017204,97955.0,97951.0,0.15]
[1732412132630,0.0017204,97955.0,97951.0,0.45654248]
[1732412133085,0.0017204,97955.0,97951.0,0.15]
[1732412133321,0.0017204,97955.0,97951.0,0.45654248]
[1732412134033,0.0017204,97955.0,97951.0,0.15]
[1732412134511,0.0017204,97959.0,97951.0,0.45654248]
[1732412134768,0.0017204,97959.0,97949.0,0.30705858]
[1732412135182,0.0017204,97959.0,97949.0,0.30791868]
[1732412135402,0.0017202,97955.0,97949.0,0.34875227]
[1732412140344,0.0017204,97959.0,97949.0,0.34875227]
[1732412140765,0.1252,97971.0,97954.0,0.023]
[1732412140962,0.0777,97971.0,97961.0,0.07852929]
[1732412141244,0.0777,97971.0,97962.0,0.15]
[1732412142377,0.0777,97971.0,97961.0,0.15]
[1732412143716,0.0777,97971.0,97961.0,0.19208705]
[1732412143944,0.00127581,98000.0,97961.0,0.19208705]
[1732412143945,0.0777,97969.0,97961.0,0.04208705]
[1732412144200,0.0777,97969.0,97962.0,0.15]
[1732412144415,0.0472,97968.0,97962.0,0.15]
[1732412144625,0.0777,97967.0,97962.0,0.15]
[1732412144838,0.0472,97966.0,97962.0,0.15]
[1732412145053,0.0478,97965.0,97959.0,0.22852929]
[1732412145316,0.0813,97964.0,97959.0,0.22852929]
[1732412145522,0.0813,97964.0,97958.0,0.07852929]
[1732412146840,0.0813,97964.0,97955.0,0.15]
[1732412147719,0.0830202,97964.0,97951.0,0.15]
[1732412148164,0.0478,97963.0,97951.0,0.15]
[1732412148380,0.1291,97962.0,97952.0,0.031478]
[1732412148596,0.0478,97957.0,97952.0,0.031478]
[1732412148823,0.0478,97957.0,97949.0,0.04152096]
[1732412148824,0.0813,97955.0,97949.0,0.04152096]
[1732412149050,0.04907614,97954.0,97949.0,0.04152096]
[1732412149350,0.0813,97953.0,97949.0,0.04152096]
[1732412149561,0.10201427,97961.0,97949.0,0.04152096]
[1732412149562,0.0813,97951.0,97949.0,0.04152096]
[1732412149771,0.04907614,97950.0,97949.0,0.04152096]
[1732412149985,0.1291,97950.0,97949.0,0.04152096]
[1732412152039,0.0936672,97950.0,97949.0,0.04152096]
[1732412152487,0.0523805,97950.0,97949.0,0.04152096]
[1732412153374,0.02212427,97950.0,97949.0,0.04152096]
[1732412154704,0.00623055,97950.0,97949.0,0.04152096]
[1732412155469,0.05363055,97950.0,97949.0,0.04152096]
[1732412155873,0.03884277,97950.0,97949.0,0.04152096]
[1732412156098,0.03187354,97950.0,97949.0,0.04152096]
[1732412156548,0.02184322,97950.0,97949.0,0.04152096]
[1732412157409,0.06518047,97961.0,97949.0,0.04152096]
[1732412157637,0.10201427,97959.0,97949.0,0.04152096]
[1732412157856,0.10201427,97959.0,97955.0,0.15]
[1732412157857,0.00123143,97958.0,97955.0,0.15]
[1732412158062,0.10201427,97957.0,97949.0,0.04152096]
[1732412158267,0.07873148,97957.0,97949.0,0.04152096]
[1732412158479,0.07873148,97957.0,97956.0,0.15]
[1732412158886,0.15843148,97957.0,97949.0,0.04152096]
[1732412159106,0.0797,97956.0,97949.0,0.04152096]
[1732412159300,0.06983787,97955.0,97949.0,0.04152096]
[1732412159528,0.0797,97954.0,97949.0,0.04152096]
[1732412159748,0.0797,97952.0,97949.0,0.04152096]
[1732412159947,0.0797,97950.0,97949.0,0.04152096]
[1732412160152,0.18171427,97950.0,97949.0,0.04152096]
[1732412160358,0.17491756,97950.0,97949.0,0.04152096]
[1732412160575,0.22421756,97950.0,97949.0,0.04152096]
[1732412161158,0.22873247,97950.0,97949.0,0.04152096]
[1732412161532,0.22421756,97950.0,97949.0,0.04152096]
[1732412166188,0.1873121,97950.0,97949.0,0.04152096]
[1732412166426,0.17905387,97950.0,97949.0,0.04152096]
[1732412167610,0.17706017,97950.0,97949.0,0.04152096]
[1732412168576,0.13124692,97950.0,97949.0,0.04152096]
[1732412171308,0.13296552,97950.0,97949.0,0.04152096]
[1732412171545,0.21186552,97950.0,97949.0,0.04152096]
[1732412173478,0.21106502,97950.0,97949.0,0.04152096]
[1732412173697,0.20554902,97950.0,97949.0,0.04152096]
[1732412174847,0.19957158,97950.0,97949.0,0.04152096]